fUSD/lending_fUSD_20260630
["ID","MTS","AMOUNT","RATE_DAILY","PERIOD"]
[426723324,1782760283000,-29235.59153982,0.00036,14]
[426723322,1782760283000,-11237.90699933,0.00036,30]
[426723319,1782760283000,-160.0,0.00035997,11]
[426723314,1782760283000,-1072.02,0.00035945,15]
[426723315,1782760283000,-240535.0,0.00035964,30]
[426723313,1782760283000,-50000.0,0.00035945,15]
[426723323,1782760283000,-21438.0808587,0.00036,2]
[426723357,1782760284000,-2336.0,0.00036115,11]
[426723359,1782760284000,-500.0,0.00036135,11]
[426723358,1782760284000,-160.0,0.00036131,11]
[426723360,1782760284000,-160.0,0.00036144,11]
[426723363,1782760284000,-160.0,0.0003617,11]
[426723364,1782760284000,-2739.88914127,0.0003618,30]
[426723361,1782760284000,-160.0,0.00036154,11]
[426723362,1782760284000,-2336.0,0.00036154,11]
[426723365,1782760284000,-2315.0,0.00036188,11]
[426723366,1782760284000,-1365.36117117,0.00036221,7]
[426723373,1782760284000,-68.94337461,0.00012382,2]
[426723371,1782760284000,-283.0,0.00036281,2]
[426723372,1782760284000,-1036.56213898,0.00036281,2]
[426723368,1782760284000,-1858.05655181,0.0003625,7]
[426723369,1782760284000,-350.0,0.00036269,40]
[426723367,1782760284000,-300.0,0.00036241,5]
[426723370,1782760284000,-3565.0,0.00036281,2]
[426723382,1782760285000,-746.46339385,0.00027397,2]
[426723389,1782760285000,-48.16249485,0.00027397,2]
[426723390,1782760285000,-2083.69486715,0.00027397,2]
[426723387,1782760285000,-1900.56142585,0.00027397,2]
[426723386,1782760285000,-747.45083015,0.00027397,2]
[426723383,1782760285000,-1385.39396815,0.00027397,2]
[426723379,1782760285000,-1071.0,0.00023,2]
[426723377,1782760285000,-661.2574344,0.00022,2]
[426723378,1782760285000,-409.7425656,0.00022,2]
[426723375,1782760285000,-889.365,0.00012382,2]
[426723376,1782760285000,-153.28444066,0.00012382,2]
[426723374,1782760285000,-888.40718473,0.00012382,2]
[426723384,1782760285000,-539.38303185,0.00027397,2]
[426723381,1782760285000,-1074.0,0.00025,2]
[426723380,1782760285000,-1071.0,0.00024,2]
[426723391,1782760285000,-4123.06613287,0.00027397,10]
[426723393,1782760285000,-666.46198287,0.00027397,2]
[426723402,1782760285000,-2131.857362,0.0003,7]
[426723400,1782760285000,-559.72,0.00029953,7]
[426723398,1782760285000,-559.72,0.0002988,2]
[426723401,1782760285000,-559.72,0.0002999,2]
[426723399,1782760285000,-559.72,0.00029916,30]
[426723396,1782760285000,-559.72,0.00029807,30]
[426723388,1782760285000,-231.29593615,0.00027397,2]
[426723394,1782760285000,-1465.39537913,0.00027397,2]
[426723403,1782760285000,-776.02949359,0.0003,7]
[426723404,1782760285000,-438.126,0.0003,7]
[426723395,1782760285000,-2131.857362,0.00027397,2]
[426723385,1782760285000,-845.0235,0.00027397,2]
[426723392,1782760285000,-612.94386713,0.00027397,10]
[426723397,1782760285000,-559.72,0.00029843,7]
[426723408,1782760518000,-2684.963,0.00012135,2]
[426723409,1782760530000,1080.90492825,0.00012381,3]
[426723411,1782760572000,-222.282,0.00012135,2]
[426723412,1782760590000,2003.63,0.0003,120]
[426723413,1782760625000,-192.5365526,0.00012182,2]
[426723414,1782760679000,-1349.99892076,0.00012282,2]
[426723415,1782760732000,-157.22759901,0.00012182,2]
[426723416,1782760785000,-2500.0,0.00012282,2]
[426723417,1782760798000,-5528.60073196,0.00012282,2]
[426723418,1782760810000,-2071.51269569,0.00012282,2]
[426723419,1782760827000,1000.0,0.000301,120]
[426723420,1782760863000,-157.87871946,0.00012282,2]
[426723421,1782760948000,172.86,0.00025739,120]
[426723424,1782761164000,500.0,0.00030099,120]
[426723425,1782761222000,-670.61614081,0.00012135,2]
[426723427,1782761234000,-670.61614081,0.00012135,2]
[426723428,1782761287000,-1022.96871838,0.00012135,2]
[426723429,1782761287000,-217.366,0.00012135,2]
[426723431,1782761287000,-1181.24905563,0.00012282,2]
[426723430,1782761287000,-9090.10208493,0.00012282,2]
[426723432,1782761287000,-249.0,0.00012282,2]
[426723434,1782761287000,-2500.0,0.00012282,2]
[426723435,1782761287000,-166.05547472,0.0001232,2]
[426723436,1782761287000,-188.51696915,0.0001232,2]
[426723433,1782761287000,-3322.3156,0.00012282,2]
[426723437,1782761288000,216.58458871,0.00012213,2]
[426723438,1782761299000,328.9468612,0.00012282,2]
[426723439,1782761332000,2500.0,0.00012282,2]
[426723440,1782761357000,1016.89464728,0.00012282,2]
[426723441,1782761360000,-5409.599608,0.00012282,2]
[426723462,1782761431000,-13461.57254871,0.00012282,2]
[426723475,1782761431000,-254.26469867,0.00012282,2]
[426723460,1782761431000,-150.0,0.00012281,2]
[426723478,1782761432000,-157908.19643189,0.00012282,2]
[426723535,1782761438000,-578.13,0.00016438,2]
[426723515,1782761438000,-500.0,0.00013698,2]
[426723518,1782761438000,-500.0,0.00013698,2]
[426723517,1782761438000,-500.0,0.00013698,2]
[426723514,1782761438000,-500.0,0.00013698,2]
[426723512,1782761438000,-500.0,0.00013698,2]
[426723519,1782761438000,-500.0,0.00013698,2]
[426723521,1782761438000,-500.0,0.00013698,2]
[426723522,1782761438000,-500.0,0.00013698,2]
[426723520,1782761438000,-500.0,0.00013698,2]
[426723524,1782761438000,-500.0,0.00013698,2]
[426723528,1782761438000,-500.0,0.00013698,2]
[426723526,1782761438000,-500.0,0.00013698,2]
[426723529,1782761438000,-457.01065149,0.00013698,2]
[426723525,1782761438000,-210.08,0.00013698,2]
[426723527,1782761438000,-500.0,0.00013698,2]
[426723530,1782761438000,-433.0,0.00014565,2]
[426723532,1782761438000,-893.0,0.0001588,2]
[426723541,1782761438000,-166.66,0.00016464,2]
[426723531,1782761438000,-736.0,0.00015855,2]
[426723523,1782761438000,-500.0,0.00013698,2]
[426723513,1782761438000,-161.12027751,0.00013698,2]
[426723509,1782761438000,-349.0,0.0001362,2]
[426723516,1782761438000,-500.0,0.00013698,2]
[426723492,1782761438000,-1500000.0,0.00012282,2]
[426723491,1782761438000,-10792.85296545,0.00012282,2]
[426723496,1782761438000,-2000.0,0.00012382,2]
[426723494,1782761438000,-590.625676,0.00012381,2]
[426723493,1782761438000,-383.21802698,0.00012381,2]
[426723495,1782761438000,-268.39858567,0.00012381,2]
[426723497,1782761438000,-151.0,0.00012382,2]
[426723506,1782761438000,-160.0,0.00012592,2]
[426723502,1782761438000,-151.0,0.00012382,2]
[426723505,1782761438000,-152.0,0.00012382,2]
[426723500,1782761438000,-150.0,0.00012382,2]
[426723501,1782761438000,-151.0,0.00012382,2]
[426723504,1782761438000,-151.0,0.00012382,2]
[426723498,1782761438000,-150.0,0.00012382,2]
[426723499,1782761438000,-151.0,0.00012382,2]
[426723503,1782761438000,-151.0,0.00012382,2]
[426723508,1782761438000,-255.0,0.00013374,2]
[426723507,1782761438000,-160.0,0.00013036,2]
[426723510,1782761438000,-500.0,0.00013698,2]
[426723511,1782761438000,-500.0,0.00013698,2]
[426723537,1782761438000,-586.29,0.00016438,2]
[426723533,1782761438000,-151.0,0.0001588,2]
[426723534,1782761438000,-328.94686115,0.00016393,2]
[426723564,1782761438000,-616.0,0.0001715,2]
[426723563,1782761438000,-500.0,0.0001715,2]
[426723566,1782761438000,-172.86,0.00017159,2]
[426723567,1782761438000,-1077.0,0.00017267,2]
[426723565,1782761438000,-166.66,0.00017157,2]
[426723573,1782761438000,-150.0,0.00017645,2]
[426723577,1782761438000,-166.66,0.00018197,2]
[426723568,1782761438000,-355.46614395,0.00017411,2]
[426723576,1782761438000,-166.66,0.0001785,2]
[426723575,1782761438000,-540.31,0.00017766,2]
[426723580,1782761438000,-8955.35,0.00018356,2]
[426723579,1782761438000,-166.66,0.00018314,2]
[426723578,1782761438000,-922.33767072,0.00018222,2]
[426723571,1782761438000,-928.54,0.00017425,2]
[426723570,1782761438000,-1253.51,0.00017424,2]
[426723569,1782761438000,-179.2,0.00017413,2]
[426723572,1782761438000,-166.66,0.00017504,2]
[426723581,1782761438000,-29999.99,0.00018533,2]
[426723583,1782761438000,-500.0,0.00018726,2]
[426723540,1782761438000,-182.03,0.00016464,2]
[426723582,1782761438000,-9999.99,0.00018533,2]
[426723562,1782761438000,-500.0,0.0001715,2]
[426723561,1782761438000,-500.0,0.0001715,2]
[426723574,1782761438000,-166.66,0.00017729,2]
[426723560,1782761438000,-251.43799297,0.0001715,2]
[426723539,1782761438000,-987.81,0.00016438,2]
[426723536,1782761438000,-657.87,0.00016438,2]
[426723559,1782761438000,-500.0,0.0001715,2]
[426723538,1782761438000,-1333.53,0.00016438,2]
[426723543,1782761438000,-166.66,0.00016811,2]
[426723554,1782761438000,-500.0,0.0001715,2]
[426723542,1782761438000,-214.57,0.00016541,2]
[426723544,1782761438000,-560.78,0.00016931,2]
[426723548,1782761438000,-150.0,0.0001715,2]
[426723550,1782761438000,-238.08670734,0.0001715,2]
[426723553,1782761438000,-500.0,0.0001715,2]
[426723551,1782761438000,-500.0,0.0001715,2]
[426723545,1782761438000,-1293.52,0.00016931,2]
[426723546,1782761438000,-958.17,0.00016932,2]
[426723549,1782761438000,-150.0,0.0001715,2]
[426723547,1782761438000,-306.54,0.00016989,2]
[426723552,1782761438000,-500.0,0.0001715,2]
[426723558,1782761438000,-500.0,0.0001715,2]
[426723556,1782761438000,-509.56126523,0.0001715,2]
[426723557,1782761438000,-500.0,0.0001715,2]
[426723555,1782761438000,-500.0,0.0001715,2]
[426723621,1782761439000,-1512.30499538,0.000198,2]
[426723620,1782761439000,-1989.78502611,0.000198,2]
[426723622,1782761439000,-384.17225189,0.000198,2]
[426723618,1782761439000,-384.17225189,0.000196,2]
[426723616,1782761439000,-1989.78502611,0.000196,2]
[426723617,1782761439000,-1512.30499538,0.000196,2]
[426723613,1782761439000,-384.17225189,0.000194,2]
[426723614,1782761439000,-166.66,0.00019484,2]
[426723615,1782761439000,-10351.40320883,0.000196,2]
[426723625,1782761439000,-10351.40320883,0.0002,2]
[426723619,1782761439000,-10351.40320883,0.000198,2]
[426723627,1782761439000,-1512.30499538,0.0002,2]
[426723634,1782761439000,-619.0,0.0002,2]
[426723628,1782761439000,-164.0,0.0002,2]
[426723626,1782761439000,-197.19051787,0.0002,2]
[426723630,1782761439000,-280.681458,0.0002,2]
[426723633,1782761439000,-155.0,0.0002,2]
[426723632,1782761439000,-399.0,0.0002,2]
[426723629,1782761439000,-162.0,0.0002,2]
[426723631,1782761439000,-254.0,0.0002,2]
[426723635,1782761439000,-970.0,0.0002,2]
[426723644,1782761439000,-328.94686115,0.00020505,2]
[426723641,1782761439000,-1512.30499538,0.000202,2]
[426723642,1782761439000,-10351.40320883,0.000204,2]
[426723623,1782761439000,-156.0,0.0002,2]
[426723624,1782761439000,-357.0,0.0002,2]
[426723612,1782761439000,-1512.30499538,0.000194,2]
[426723589,1782761439000,-166.66,0.00018899,2]
[426723611,1782761439000,-1989.78502611,0.000194,2]
[426723637,1782761439000,-241.0,0.0002,2]
[426723587,1782761439000,-154.92925631,0.00018726,2]
[426723585,1782761439000,-500.0,0.00018726,2]
[426723588,1782761439000,-621.15565481,0.00018726,2]
[426723584,1782761439000,-150.0,0.00018726,2]
[426723586,1782761439000,-500.0,0.00018726,2]
[426723590,1782761439000,-500.0,0.00018926,2]
[426723595,1782761439000,-1989.78502611,0.00019,2]
[426723594,1782761439000,-10351.40320883,0.00019,2]
[426723599,1782761439000,-3000.0,0.00019178,2]
[426723593,1782761439000,-343.1176374,0.00018926,2]
[426723596,1782761439000,-1512.30499538,0.00019,2]
[426723607,1782761439000,-500.0,0.00019355,7]
[426723592,1782761439000,-500.0,0.00018926,2]
[426723598,1782761439000,-540.31,0.00019136,2]
[426723597,1782761439000,-384.17225189,0.00019,2]
[426723608,1782761439000,-500.0,0.00019355,7]
[426723609,1782761439000,-542.16,0.00019355,7]
[426723600,1782761439000,-3000.0,0.00019178,7]
[426723610,1782761439000,-10351.40320883,0.000194,2]
[426723603,1782761439000,-1512.30499538,0.000192,2]
[426723604,1782761439000,-384.17225189,0.000192,2]
[426723606,1782761439000,-500.0,0.00019355,7]
[426723602,1782761439000,-1989.78502611,0.000192,2]
[426723601,1782761439000,-10351.40320883,0.000192,2]
[426723605,1782761439000,-500.0,0.00019355,7]
[426723591,1782761439000,-500.0,0.00018926,2]
[426723636,1782761439000,-353.0,0.0002,2]
[426723679,1782761439000,-399.0,0.00021,2]
[426723638,1782761439000,-9090.10208485,0.00020038,2]
[426723683,1782761439000,-353.0,0.00021,2]
[426723671,1782761439000,-514.02,0.00020916,2]
[426723674,1782761439000,-10351.40320883,0.00021,2]
[426723673,1782761439000,-357.0,0.00021,2]
[426723675,1782761439000,-164.0,0.00021,2]
[426723677,1782761439000,-419.04784237,0.00021,2]
[426723680,1782761439000,-155.0,0.00021,2]
[426723678,1782761439000,-254.0,0.00021,2]
[426723681,1782761439000,-619.0,0.00021,2]
[426723676,1782761439000,-162.0,0.00021,2]
[426723684,1782761439000,-241.0,0.00021,2]
[426723688,1782761439000,-419.04784237,0.000214,2]
[426723682,1782761439000,-970.0,0.00021,2]
[426723695,1782761439000,-500.0,0.00021917,2]
[426723691,1782761439000,-419.04784237,0.000219,2]
[426723686,1782761439000,-296.64,0.00021273,2]
[426723692,1782761439000,-456.10089585,0.00021917,2]
[426723689,1782761439000,-172.86,0.00021449,2]
[426723694,1782761439000,-500.0,0.00021917,2]
[426723690,1782761439000,-419.04784237,0.000216,2]
[426723696,1782761439000,-500.0,0.00021917,2]
[426723698,1782761439000,-500.0,0.00021917,2]
[426723700,1782761439000,-5000.0,0.00021918,2]
[426723699,1782761439000,-500.0,0.00021917,2]
[426723697,1782761439000,-500.0,0.00021917,2]
[426723646,1782761439000,-10351.40320883,0.000206,2]
[426723693,1782761439000,-500.0,0.00021917,2]
[426723672,1782761439000,-156.0,0.00021,2]
[426723685,1782761439000,-419.04784237,0.000212,2]
[426723663,1782761439000,-151.0,0.00020691,2]
[426723668,1782761439000,-151.0,0.00020691,2]
[426723639,1782761439000,-166.66,0.00020069,2]
[426723645,1782761439000,-182.03,0.0002058,2]
[426723643,1782761439000,-1512.30499538,0.000204,2]
[426723647,1782761439000,-1512.30499538,0.000206,2]
[426723648,1782761439000,-166.66,0.00020655,2]
[426723658,1782761439000,-151.0,0.00020691,2]
[426723649,1782761439000,-151.0,0.00020691,2]
[426723651,1782761439000,-151.0,0.00020691,2]
[426723650,1782761439000,-151.0,0.00020691,2]
[426723652,1782761439000,-151.0,0.00020691,2]
[426723657,1782761439000,-151.0,0.00020691,2]
[426723653,1782761439000,-151.0,0.00020691,2]
[426723640,1782761439000,-10351.40320883,0.000202,2]
[426723656,1782761439000,-151.0,0.00020691,2]
[426723654,1782761439000,-151.0,0.00020691,2]
[426723666,1782761439000,-151.0,0.00020691,2]
[426723669,1782761439000,-10351.40320883,0.000208,2]
[426723659,1782761439000,-151.0,0.00020691,2]
[426723664,1782761439000,-151.0,0.00020691,2]
[426723665,1782761439000,-151.0,0.00020691,2]
[426723667,1782761439000,-151.0,0.00020691,2]
[426723670,1782761439000,-1512.30499538,0.000208,2]
[426723661,1782761439000,-151.0,0.00020691,2]
[426723662,1782761439000,-151.0,0.00020691,2]
[426723655,1782761439000,-151.0,0.00020691,2]
[426723660,1782761439000,-151.0,0.00020691,2]
[426723737,1782761440000,-156.32413433,0.0002364,2]
[426723742,1782761440000,-173.75060501,0.0002364,2]
[426723744,1782761440000,-195.51893454,0.0002364,2]
[426723729,1782761440000,-178.01916353,0.0002364,2]
[426723743,1782761440000,-155.92260126,0.0002364,2]
[426723734,1782761440000,-177.52155104,0.0002364,2]
[426723740,1782761440000,-219.62417265,0.0002364,2]
[426723733,1782761440000,-200.04638774,0.0002364,2]
[426723741,1782761440000,-169.07717417,0.0002364,2]
[426723731,1782761440000,-178.95052876,0.0002364,2]
[426723739,1782761440000,-201.4354488,0.0002364,2]
[426723735,1782761440000,-189.37690086,0.0002364,2]
[426723736,1782761440000,-154.68015539,0.0002364,2]
[426723757,1782761440000,-180.26197922,0.00023729,2]
[426723746,1782761440000,-158.14925897,0.0002364,2]
[426723745,1782761440000,-175.81981745,0.0002364,2]
[426723756,1782761440000,-184.77628881,0.00023729,2]
[426723750,1782761440000,-208.75034962,0.0002364,2]
[426723749,1782761440000,-210.88884298,0.0002364,2]
[426723753,1782761440000,-175.36298536,0.00023729,2]
[426723747,1782761440000,-185.25063757,0.0002364,2]
[426723751,1782761440000,-154.25308505,0.0002364,2]
[426723752,1782761440000,-169.56780495,0.00023656,2]
[426723748,1782761440000,-181.80446526,0.0002364,2]
[426723754,1782761440000,-169.17238459,0.00023729,2]
[426723728,1782761440000,-164.93979154,0.0002364,2]
[426723738,1782761440000,-212.53348163,0.0002364,2]
[426723730,1782761440000,-162.84508604,0.0002364,2]
[426723708,1782761440000,-605.0,0.00022,2]
[426723726,1782761440000,-241.0,0.00023,2]
[426723702,1782761440000,-156.0,0.00022,2]
[426723701,1782761440000,-170.93,0.00021918,2]
[426723703,1782761440000,-357.0,0.00022,2]
[426723704,1782761440000,-164.0,0.00022,2]
[426723706,1782761440000,-254.0,0.00022,2]
[426723705,1782761440000,-162.0,0.00022,2]
[426723707,1782761440000,-399.0,0.00022,2]
[426723709,1782761440000,-164.0,0.00022,2]
[426723710,1782761440000,-619.0,0.00022,2]
[426723711,1782761440000,-970.0,0.00022,2]
[426723713,1782761440000,-241.0,0.00022,2]
[426723717,1782761440000,-156.0,0.00023,2]
[426723727,1782761440000,-183.25452967,0.0002364,2]
[426723714,1782761440000,-645.96,0.00022466,2]
[426723718,1782761440000,-357.0,0.00023,2]
[426723715,1782761440000,-714.08,0.00022466,2]
[426723720,1782761440000,-162.0,0.00023,2]
[426723712,1782761440000,-353.0,0.00022,2]
[426723716,1782761440000,-675.05,0.00022466,2]
[426723732,1782761440000,-192.1270461,0.0002364,2]
[426723722,1782761440000,-399.0,0.00023,2]
[426723724,1782761440000,-970.0,0.00023,2]
[426723755,1782761440000,-190.25900073,0.00023729,2]
[426723721,1782761440000,-254.0,0.00023,2]
[426723725,1782761440000,-353.0,0.00023,2]
[426723723,1782761440000,-619.0,0.00023,2]
[426723719,1782761440000,-164.0,0.00023,2]
[426723759,1782761440000,-199.41777168,0.00023729,2]
[426723804,1782761440000,-378.75380173,0.00024897,2]
[426723767,1782761440000,-18219.81,0.00023865,7]
[426723787,1782761440000,-328.94686115,0.00024616,2]
[426723791,1782761440000,-182.03,0.00024696,2]
[426723794,1782761440000,-366.50905934,0.00024897,2]
[426723795,1782761440000,-329.87958308,0.00024897,2]
[426723796,1782761440000,-356.03832706,0.00024897,2]
[426723800,1782761440000,-355.04310209,0.00024897,2]
[426723793,1782761440000,-200.0,0.00024702,2]
[426723802,1782761440000,-209.43339595,0.00024897,2]
[426723798,1782761440000,-357.90105753,0.00024897,2]
[426723801,1782761440000,-400.09277548,0.00024897,2]
[426723803,1782761440000,-179.79022351,0.00024897,2]
[426723797,1782761440000,-325.69017208,0.00024897,2]
[426723788,1782761440000,-170.93,0.00024658,8]
[426723799,1782761440000,-384.2540922,0.00024897,2]
[426723808,1782761440000,-402.8708976,0.00024897,2]
[426723807,1782761440000,-425.06696325,0.00024897,2]
[426723811,1782761440000,-347.50121002,0.00024897,2]
[426723810,1782761440000,-338.15434833,0.00024897,2]
[426723806,1782761440000,-312.64826867,0.00024897,2]
[426723809,1782761440000,-439.24834531,0.00024897,2]
[426723815,1782761440000,-316.29851795,0.00024897,2]
[426723813,1782761440000,-351.63963489,0.00024897,2]
[426723812,1782761440000,-311.84520252,0.00024897,2]
[426723814,1782761440000,-391.03786909,0.00024897,2]
[426723817,1782761440000,-202.05489371,0.00024897,2]
[426723758,1782761440000,-157.10163444,0.00023729,2]
[426723805,1782761440000,-309.36031078,0.00024897,2]
[426723785,1782761440000,-502.0,0.00024438,2]
[426723816,1782761440000,-370.50127514,0.00024897,2]
[426723784,1782761440000,-2434.06370584,0.00024222,7]
[426723760,1782761440000,-183.93565119,0.00023729,2]
[426723764,1782761440000,-170.16054956,0.00023729,2]
[426723765,1782761440000,-163.33965247,0.00023729,2]
[426723761,1782761440000,-208.72701356,0.00023729,2]
[426723762,1782761440000,-181.28752898,0.00023729,2]
[426723766,1782761440000,-306.54,0.00023784,2]
[426723763,1782761440000,-163.77556041,0.00023729,2]
[426723786,1782761440000,-500.0,0.00024521,2]
[426723770,1782761440000,-357.0,0.00024,2]
[426723773,1782761440000,-254.0,0.00024,2]
[426723769,1782761440000,-165.0,0.00024,2]
[426723771,1782761440000,-164.0,0.00024,2]
[426723780,1782761440000,-9912.37,0.00024174,2]
[426723768,1782761440000,-4606.1,0.00023865,7]
[426723772,1782761440000,-162.0,0.00024,2]
[426723792,1782761440000,-152.0,0.00024697,3]
[426723779,1782761440000,-241.0,0.00024,2]
[426723790,1782761440000,-1000.0,0.00024658,2]
[426723789,1782761440000,-231.1,0.00024658,2]
[426723781,1782761440000,-2702.38,0.00024174,2]
[426723783,1782761440000,-59045.75,0.00024174,2]
[426723778,1782761440000,-150.0,0.00024,2]
[426723774,1782761440000,-399.0,0.00024,2]
[426723776,1782761440000,-970.0,0.00024,2]
[426723775,1782761440000,-619.0,0.00024,2]
[426723777,1782761440000,-353.0,0.00024,2]
[426723782,1782761440000,-516.24,0.00024174,2]
[426723854,1782761441000,-4938.24,0.00025084,7]
[426723859,1782761441000,-500.0,0.00025735,2]
[426723850,1782761441000,-983.44304302,0.00025,2]
[426723853,1782761441000,-206.0,0.00025073,2]
[426723843,1782761441000,-326.67930494,0.00024989,2]
[426723852,1782761441000,-247.0,0.00025,2]
[426723861,1782761441000,-549.76358901,0.00025735,2]
[426723851,1782761441000,-363.18545398,0.00025,2]
[426723846,1782761441000,-180.0,0.00025,2]
[426723858,1782761441000,-655.52,0.00025675,7]
[426723857,1782761441000,-500.0,0.00025675,7]
[426723869,1782761441000,-600.13916321,0.00025735,2]
[426723855,1782761441000,-151.83365069,0.0002532,2]
[426723856,1782761441000,-151.83365069,0.00025674,2]
[426723862,1782761441000,-494.81937462,0.00025735,2]
[426723863,1782761441000,-534.0574906,0.00025735,2]
[426723864,1782761441000,-155.49693022,0.00025735,2]
[426723865,1782761441000,-488.53525812,0.00025735,2]
[426723867,1782761441000,-576.38113831,0.00025735,2]
[426723866,1782761441000,-536.85158629,0.00025735,2]
[426723871,1782761441000,-418.86679189,0.00025735,2]
[426723870,1782761441000,-532.56465313,0.00025735,2]
[426723868,1782761441000,-201.74868217,0.00025735,2]
[426723841,1782761441000,-327.55112082,0.00024989,2]
[426723860,1782761441000,-251.97826501,0.00025735,2]
[426723847,1782761441000,-267.0,0.00025,2]
[426723830,1782761441000,-200.42374354,0.00024989,2]
[426723842,1782761441000,-340.32109912,0.00024989,2]
[426723876,1782761441000,-637.60044488,0.00025735,2]
[426723818,1782761441000,-363.60893053,0.00024897,2]
[426723824,1782761441000,-339.13560989,0.00024914,2]
[426723825,1782761441000,-151.83365077,0.00024967,2]
[426723826,1782761441000,-350.72597073,0.00024989,2]
[426723823,1782761441000,-308.5061701,0.00024897,2]
[426723822,1782761441000,-417.50069925,0.00024897,2]
[426723821,1782761441000,-421.77768597,0.00024897,2]
[426723820,1782761441000,-235.4831407,0.00024897,2]
[426723827,1782761441000,-338.34476917,0.00024989,2]
[426723828,1782761441000,-222.05036307,0.00024989,2]
[426723831,1782761441000,-369.55257761,0.00024989,2]
[426723834,1782761441000,-398.83554336,0.00024989,2]
[426723832,1782761441000,-314.20326888,0.00024989,2]
[426723836,1782761441000,-209.7586639,0.00024989,2]
[426723833,1782761441000,-360.52395844,0.00024989,2]
[426723829,1782761441000,-380.51800146,0.00024989,2]
[426723835,1782761441000,-367.87130237,0.00024989,2]
[426723837,1782761441000,-417.45402712,0.00024989,2]
[426723839,1782761441000,-362.57505797,0.00024989,2]
[426723849,1782761441000,-628.48904749,0.00025,2]
[426723840,1782761441000,-233.6003239,0.00024989,2]
[426723838,1782761441000,-204.67862416,0.00024989,2]
[426723845,1782761441000,-164.59292995,0.00025,2]
[426723844,1782761441000,-364.0,0.00025,2]
[426723848,1782761441000,-414.59671447,0.00025,2]
[426723872,1782761441000,-359.58044701,0.00025735,2]
[426723819,1782761441000,-184.02800659,0.00024897,2]
[426723874,1782761441000,-464.04046617,0.00025735,2]
[426723914,1782761441000,-551.80695356,0.0002583,2]
[426723906,1782761441000,-400.84748708,0.0002583,2]
[426723907,1782761441000,-181.63045632,0.0002583,2]
[426723910,1782761441000,-540.78593766,0.0002583,2]
[426723904,1782761441000,-530.93963267,0.0002583,2]
[426723909,1782761441000,-471.30490331,0.0002583,2]
[426723905,1782761441000,-229.14881499,0.0002583,2]
[426723908,1782761441000,-554.32886642,0.0002583,2]
[426723911,1782761441000,-598.25331503,0.0002583,2]
[426723913,1782761441000,-151.54212376,0.0002583,2]
[426723912,1782761441000,-190.6418898,0.0002583,2]
[426723927,1782761441000,-490.01895741,0.0002583,2]
[426723917,1782761441000,-626.18104068,0.0002583,2]
[426723916,1782761441000,-193.14651387,0.0002583,2]
[426723919,1782761441000,-197.10731322,0.0002583,2]
[426723925,1782761441000,-491.32668123,0.0002583,2]
[426723922,1782761441000,-546.96919059,0.0002583,2]
[426723918,1782761441000,-211.02892932,0.0002583,2]
[426723923,1782761441000,-543.86258695,0.0002583,2]
[426723924,1782761441000,-467.20064779,0.0002583,2]
[426723926,1782761441000,-510.48164867,0.0002583,2]
[426723921,1782761441000,-409.35724831,0.0002583,2]
[426723920,1782761441000,-229.65305297,0.0002583,2]
[426723928,1782761441000,-222.03500896,0.0002583,2]
[426723929,1782761441000,-257.77625265,0.0002583,2]
[426723915,1782761441000,-419.51732781,0.0002583,2]
[426723903,1782761441000,-562.17661039,0.0002583,2]
[426723873,1782761441000,-568.13070259,0.00025735,2]